Cogmind - Beta 15 @@@ ROGUE MODE // 2025.08.05 @ 14:00:28 Player: shapeshifter Result: Destroyed by P-60 Hacker with Shock Rifle Performance ------------- Evolutions (4) 2000 Regions Visited (12) 2400 Robots Destroyed (0) 0 Value Destroyed (0) 0 Prototype IDs (1) 20 Alien Tech Used (0) 0 Bonus (1646) 1646 TOTAL SCORE: 6066 Bonus ------- Pacifist 1125 Follower Combat Kills 21 Entered DSFs 500 Cogmind --------- Core Integrity 0/850 Matter 203/300 Energy 99/100 System Corruption 15% Temperature Cool (0) Movement Core (50) Location -6/Factory Parts ------- > --- POWER (2) -------- (None) > --- PROPULSION (6) --- (None) > --- UTILITY (5) ------ (None) > --- WEAPON (2) ------- (None) > --- INVENTORY (5) ---- Angular Momentum Engine Power Amplifier Decoy Drone Bay (16/16) Improved Grenade Launcher Peak State ------------ > --- POWER ------------ Angular Momentum Engine > --- PROPULSION ------- VTOL Module Impulse Thruster > --- UTILITY ---------- Decoy Drone Bay > --- WEAPON ----------- (None) > --- INVENTORY -------- Power Amplifier Proton Missile Launcher Axe [Rating: 29] Favorites ----------- Power Light Ion Engine Engine Light Ion Engine Propulsion Flight Unit Flight Unit Flight Unit Utility Terrain Scanner Device Terrain Scanner Storage Small Storage Unit Protection Light Armor Plating Weapon None Build | -11 -10 -10 -10 -9 -8 -7 -7 -7 -7 -6 -6 -6 ------- Run | Yrd Mat Min Exi Min Mat Fac Was Fac DSF Fac Was Fac Slots Evolved 8 | . . . . . 4 2 . . . 2 . . Power 1 | . . . . . . . . . . 1 . . Propulsion 4 | . . . . . 2 2 . . . . . . Utility 3 | . . . . . 2 . . . . 1 . . Weapon . | . . . . . . . . . . . . . Parts Attached 19 | . . 5 . . 2 . . . 6 1 1 4 Power 2 | . . 1 . . . . . . . . . 1 Engine 2 | . . 1 . . . . . . . . . 1 Core . | . . . . . . . . . . . . . Reactor . | . . . . . . . . . . . . . Propulsion 12 | . . 2 . . 1 . . . 6 1 1 1 Treads . | . . . . . . . . . . . . . Leg . | . . . . . . . . . . . . . Wheel . | . . . . . . . . . . . . . Hover . | . . . . . . . . . . . . . Flight 12 | . . 2 . . 1 . . . 6 1 1 1 Utility 5 | . . 2 . . 1 . . . . . . 2 Device 3 | . . 1 . . . . . . . . . 2 Storage 1 | . . . . . 1 . . . . . . . Processor . | . . . . . . . . . . . . . Hackware . | . . . . . . . . . . . . . Protection 1 | . . 1 . . . . . . . . . . Artifact . | . . . . . . . . . . . . . Weapon . | . . . . . . . . . . . . . Energy Gun . | . . . . . . . . . . . . . Energy Cannon . | . . . . . . . . . . . . . Ballistic Gun . | . . . . . . . . . . . . . Ballistic Cannon . | . . . . . . . . . . . . . Launcher . | . . . . . . . . . . . . . Special Weapon . | . . . . . . . . . . . . . Impact Weapon . | . . . . . . . . . . . . . Slashing Weapon . | . . . . . . . . . . . . . Piercing Weapon . | . . . . . . . . . . . . . Special Melee Weapon . | . . . . . . . . . . . . . Unidentified Prototypes 1 | . . . . . . . . . . . . 1 Corrupted Parts 1 | . . . . . . . . . . . . 1 System Corruption 3 | . . . . . . . . . . . . 3 Parts Lost 13 | . . . . . . . 1 . 6 3 . 3 Power 1 | . . . . . . . 1 . . . . . Propulsion 9 | . . . . . . . . . 5 2 . 2 Utility 3 | . . . . . . . . . 1 1 . 1 Weapon . | . . . . . . . . . . . . . Highest Loss Streak 9 | . . . . . . . 1 . 6 9 . 3 To Critical Strikes . | . . . . . . . . . . . . . Average Backups 3 | 1 2 4 4 4 3 4 4 4 5 5 3 3 Power . | . 1 . . . . . . . . . . . Propulsion . | . . . 1 1 . . . . . 1 . . Utility 1 | . 1 2 2 2 1 2 2 2 2 1 1 1 Weapon 1 | . . 1 1 1 1 2 2 2 2 2 2 1 Tool/Special . | . . . . . . . . . . . . . Unused Backups 7 | . . 1 . . . . . . . 2 . 4 Power . | . . . . . . . . . . . . . Propulsion . | . . . . . . . . . . . . . Utility 3 | . . 1 . . . . . . . 1 . 1 Weapon 4 | . . . . . . . . . . 1 . 3 Tool/Special . | . . . . . . . . . . . . . Average Slot Usage (%) 34 | . . 47 71 71 61 53 41 38 39 13 6 7 Engine 5 | . . 8 14 14 9 7 3 . . . . . Flight 16 | . . 19 28 28 25 23 19 23 26 9 6 6 Device 5 | . . 8 14 14 9 7 7 7 5 . . 1 Storage 1 | . . . . . 9 7 7 7 7 3 . . Protection 5 | . . 10 14 14 9 7 3 . . . . . Peak Build Rating 29 | . . 6 6 6 9 9 9 7 14 9 4 29 Average Rating 5 | . . 4 6 6 8 9 7 7 8 5 4 7 On Entrance 4 | . . . 6 6 6 9 9 7 7 8 2 4 Naked Turns 315 | . 111 87 . . . . . . . 14 . 103 Heaviest Build 12 | . . 7 7 7 12 12 12 6 6 5 . 6 Greatest Support 24 | 3 3 8 8 8 12 12 12 12 24 7 4 11 Greatest Overweight (x) 1 | . . . . . . . . . 1 . . . Average Overweight (x) . | . . . . . . . . . . . . . Largest Inventory Capacity 8 | 5 5 5 5 5 8 8 8 8 8 8 5 5 Average Capacity 5 | 5 5 5 5 5 8 8 8 8 8 6 5 5 Most Carried 8 | 2 4 5 5 5 5 5 6 5 8 8 5 5 Average Carried 4 | 1 2 4 5 5 4 5 5 5 6 6 4 4 Final Capacity 8 | 5 5 5 5 5 8 8 8 8 8 5 5 5 Final Carried 8 | 2 4 5 5 5 5 5 5 5 8 5 5 5 Class Distribution -------------------- 95% | Mutant 4% | Sprinter Dominant Class ---------------- Mutant | -10/Materials Mutant | -10/Mines Mutant | -10/Exiles Mutant | -9/Mines Mutant | -8/Materials Mutant | -7/Factory Mutant | -7/Waste Mutant | -7/Factory Mutant | -7/DSF Sprinter | -6/Factory Mutant | -6/Waste Mutant | -6/Factory Resources | -11 -10 -10 -10 -9 -8 -7 -7 -7 -7 -6 -6 -6 ----------- Run | Yrd Mat Min Exi Min Mat Fac Was Fac DSF Fac Was Fac Matter Collected 273 | 200 . 50 . . 14 . . . 8 1 . . Remotely . | . . . . . . . . . . . . . Salvage Created . | . . . . . . . . . . . . . Parts . | . . . . . . . . . . . . . Haulers Intercepted . | . . . . . . . . . . . . . Recyclers Shooed . | . . . . . . . . . . . . . Parts Field Recycled . | . . . . . . . . . . . . . Retrieved Matter . | . . . . . . . . . . . . . Parts Self-Destructed . | . . . . . . . . . . . . . Prevented . | . . . . . . . . . . . . . Kills | -11 -10 -10 -10 -9 -8 -7 -7 -7 -7 -6 -6 -6 ------- Run | Yrd Mat Min Exi Min Mat Fac Was Fac DSF Fac Was Fac Combat Hostiles Destroyed . | . . . . . . . . . . . . . Classes Destroyed . | . . . . . . . . . . . . . Best Kill Streak . | . . . . . . . . . . . . . Combat Bots Only . | . . . . . . . . . . . . . Max Kills in Single Turn . | . . . . . . . . . . . . . Gunslinging . | . . . . . . . . . . . . . Exploded . | . . . . . . . . . . . . . Melee . | . . . . . . . . . . . . . Uniques/NPCs Destroyed . | . . . . . . . . . . . . . Combat | -11 -10 -10 -10 -9 -8 -7 -7 -7 -7 -6 -6 -6 -------- Run | Yrd Mat Min Exi Min Mat Fac Was Fac DSF Fac Was Fac Hostile Shots Fired 180 | . 9 14 . . 4 . 1 . 49 23 . 80 Missed 87 | . 5 4 . . 1 . . . 31 10 . 36 Hits 93 | . 4 10 . . 3 . 1 . 18 13 . 44 Melee 6 | . . . . . . . 1 . 1 4 . . Projectile 87 | . 4 10 . . 3 . . . 17 9 . 44 AOE 7 | . . . . . . . . . 3 4 . . Critical Strikes 8 | . 1 . . . 1 . 1 . 1 4 . . Damage Taken 1719 | . 32 74 . . 33 . 49 . 396 415 . 720 Core 1111 | . 32 41 . . . . 49 . 129 327 . 533 Absorbed by Shields 5 | . . . . . . . . . 5 . . . Core Remaining (%) 86 | 100 . . . 70 100 . . . 74 . . . Volleys Fired . | . . . . . . . . . . . . . Largest . | . . . . . . . . . . . . . Hottest . | . . . . . . . . . . . . . Shots Fired . | . . . . . . . . . . . . . Gun . | . . . . . . . . . . . . . Cannon . | . . . . . . . . . . . . . Launcher . | . . . . . . . . . . . . . Special . | . . . . . . . . . . . . . Kinetic . | . . . . . . . . . . . . . Thermal . | . . . . . . . . . . . . . Explosive . | . . . . . . . . . . . . . Electromagnetic . | . . . . . . . . . . . . . Robot Hit Streak . | . . . . . . . . . . . . . Robot Miss Streak . | . . . . . . . . . . . . . Penetration Max . | . . . . . . . . . . . . . Secondary Targets . | . . . . . . . . . . . . . Shots Hit Robots . | . . . . . . . . . . . . . Core Hits . | . . . . . . . . . . . . . Critical Kills . | . . . . . . . . . . . . . Critical Parts Destroyed . | . . . . . . . . . . . . . Critical Strikes . | . . . . . . . . . . . . . Melee Attacks . | . . . . . . . . . . . . . Impact . | . . . . . . . . . . . . . Slashing . | . . . . . . . . . . . . . Piercing . | . . . . . . . . . . . . . Sneak Attacks . | . . . . . . . . . . . . . Combat Hostiles . | . . . . . . . . . . . . . Follow-up Attacks . | . . . . . . . . . . . . . Damage Inflicted 2 | . . . . . . . . . . . . 2 Guns . | . . . . . . . . . . . . . Cannons . | . . . . . . . . . . . . . Explosions . | . . . . . . . . . . . . . Melee . | . . . . . . . . . . . . . Ramming 2 | . . . . . . . . . . . . 2 Kinetic . | . . . . . . . . . . . . . Thermal . | . . . . . . . . . . . . . Explosive . | . . . . . . . . . . . . . Electromagnetic . | . . . . . . . . . . . . . Impact . | . . . . . . . . . . . . . Slashing . | . . . . . . . . . . . . . Piercing . | . . . . . . . . . . . . . Highest Corruption 15 | . . . . . . . 8 8 9 . 9 15 Average Corruption 10 | . . . . . . . 8 8 8 . 9 12 Corruption Purged . | . . . . . . . . . . . . . Corruption Blocked . | . . . . . . . . . . . . . Effects 16 | . . . . . . . . . 3 . 3 10 Message Errors 5 | . . . . . . . . . 1 . 2 2 Matter Fused 4 | . . . . . . . . . . . . 4 Heat Flow Errors 4 | . . . . . . . . . 2 . 1 1 Data Loss (minor) 1 | . . . . . . . . . . . . 1 Misdirections 2 | . . . . . . . . . . . . 2 Overload Shots . | . . . . . . . . . . . . . Overflow Damage . | . . . . . . . . . . . . . Projectiles . | . . . . . . . . . . . . . Explosions . | . . . . . . . . . . . . . Melee . | . . . . . . . . . . . . . Knockbacks . | . . . . . . . . . . . . . Impact . | . . . . . . . . . . . . . Kinetic . | . . . . . . . . . . . . . Secondary . | . . . . . . . . . . . . . Self-Inflicted Damage 1 | . . . . . . . . . . . . 1 Shots . | . . . . . . . . . . . . . Rammed 2 | . 1 . . . . . . . . . . 1 Targets Rammed 2 | . 1 . . . . . . . . . . 1 Kicked . | . . . . . . . . . . . . . Crushed . | . . . . . . . . . . . . . Highest Temperature 241 | . . . . . 16 . . . 241 . 73 86 Average Temperature 75 | . . . . . 10 . . . 140 . 39 49 Received Heat Transfer 289 | . . . . . 36 . . . 16 . . 237 Siege Activations . | . . . . . . . . . . . . . Martial Activations . | . . . . . . . . . . . . . Shielding Activations . | . . . . . . . . . . . . . Robots Disrupted . | . . . . . . . . . . . . . Combat Hostiles . | . . . . . . . . . . . . . Robots Corrupted . | . . . . . . . . . . . . . Combat Hostiles . | . . . . . . . . . . . . . Parts Fried . | . . . . . . . . . . . . . Impact Corruptions . | . . . . . . . . . . . . . Robots Melted . | . . . . . . . . . . . . . Combat Hostiles . | . . . . . . . . . . . . . Parts Melted . | . . . . . . . . . . . . . Heat Transferred . | . . . . . . . . . . . . . Parts Sabotaged . | . . . . . . . . . . . . . Parts Stolen . | . . . . . . . . . . . . . Parts Stripped . | . . . . . . . . . . . . . Power Chain Reactions . | . . . . . . . . . . . . . Alert | -11 -10 -10 -10 -9 -8 -7 -7 -7 -7 -6 -6 -6 ------- Run | Yrd Mat Min Exi Min Mat Fac Was Fac DSF Fac Was Fac Maximum Alert Level . | . . . . . . . . . . . . . Low Security (%) 100 | 100 100 100 . 100 100 100 100 100 100 100 100 100 Level 1 . | . . . . . . . . . . . . . Level 2 . | . . . . . . . . . . . . . Level 3 . | . . . . . . . . . . . . . Level 4 . | . . . . . . . . . . . . . Level 5 . | . . . . . . . . . . . . . High Security . | . . . . . . . . . . . . . Max Security . | . . . . . . . . . . . . . Peak Influence 68 | . 35 68 . . . 15 1 . 18 2 . 60 Initial 3 | . . 1 . . . . 1 . 3 2 . . Average 11 | . 13 19 . . . 1 . . 4 . . 15 Influence Increases 313 | . 45 128 . . . 15 . 5 30 . . 90 Destroy 0b10 Robot/C 100 | . . 100 . . . . . . . . . . Destroy Leader 20 | . . 20 . . . . . . . . . . Allied During Kill 8 | . . 8 . . . . . . . . . . Successful Hack 5 | . . . . . . . . 5 . . . . Partial Spotted 30 | . . . . . . 15 . . . . . 15 Lose Combat Pursuer 150 | . 45 . . . . . . . 30 . . 75 Influence Decreases 283 | . 40 133 . . . 10 5 . 30 5 . 60 Entered New Map 13 | . . 4 . . . . 4 . 2 3 . . Time Decay 216 | . 40 109 . . . 10 . . . 2 . 55 Lost Part 34 | . . . . . . . 1 . 28 . . 5 Lost Ally 20 | . . 20 . . . . . . . . . . Squads Dispatched 9 | . 2 . . . 1 . . . 1 3 . 2 Investigation 5 | . 2 . . . . . . . . 2 . 1 Extermination . | . . . . . . . . . . . . . Reinforcement 4 | . . . . . 1 . . . 1 1 . 1 Assault . | . . . . . . . . . . . . . Garrison . | . . . . . . . . . . . . . Intercept . | . . . . . . . . . . . . . Searches Triggered . | . . . . . . . . . . . . . Construction Impeded . | . . . . . . . . . . . . . Haulers Reinforced . | . . . . . . . . . . . . . Active Scanning Responses . | . . . . . . . . . . . . . Cargo Convoy Interrupts . | . . . . . . . . . . . . . Stealth | -11 -10 -10 -10 -9 -8 -7 -7 -7 -7 -6 -6 -6 --------- Run | Yrd Mat Min Exi Min Mat Fac Was Fac DSF Fac Was Fac Distress Signals 2 | . 1 . . . 1 . . . . . . . Communications Jammed . | . . . . . . . . . . . . . Distress Signals . | . . . . . . . . . . . . . Times Spotted 50 | . 5 3 . 2 4 1 6 . 7 7 6 9 Peak Tracking Total 18 | . 3 3 . 18 3 4 6 . 6 6 6 6 Tactical Retreats 5 | . 1 . . 1 . . . . 1 . . 2 Traps | -11 -10 -10 -10 -9 -8 -7 -7 -7 -7 -6 -6 -6 ------- Run | Yrd Mat Min Exi Min Mat Fac Was Fac DSF Fac Was Fac Traps Triggered 7 | . 1 . . . . 1 . . 3 1 . 1 Indirectly . | . . . . . . . . . . . . . Trap Hack Attempts . | . . . . . . . . . . . . . Triggered . | . . . . . . . . . . . . . Disarmed . | . . . . . . . . . . . . . Reprogrammed . | . . . . . . . . . . . . . Reused . | . . . . . . . . . . . . . Traps Extracted . | . . . . . . . . . . . . . Installed 1 | . . 1 . . . . . . . . . . Triggered . | . . . . . . . . . . . . . Machines | -11 -10 -10 -10 -9 -8 -7 -7 -7 -7 -6 -6 -6 ---------- Run | Yrd Mat Min Exi Min Mat Fac Was Fac DSF Fac Was Fac Machines Disabled . | . . . . . . . . . . . . . Max in Single Turn . | . . . . . . . . . . . . . Machines Repaired . | . . . . . . . . . . . . . Machines Dismantled . | . . . . . . . . . . . . . Machines Sabotaged . | . . . . . . . . . . . . . Overloaded Fab Kills . | . . . . . . . . . . . . . Hacking | -11 -10 -10 -10 -9 -8 -7 -7 -7 -7 -6 -6 -6 --------- Run | Yrd Mat Min Exi Min Mat Fac Was Fac DSF Fac Was Fac Machines Accessed 9 | . 1 1 1 . . . . 1 . 2 . 3 Terminals 6 | . 1 . . . . . . 1 . 2 . 2 Fabricators . | . . . . . . . . . . . . . Repair Stations . | . . . . . . . . . . . . . Recycling Units 1 | . . . . . . . . . . . . 1 Scanalyzers . | . . . . . . . . . . . . . Garrison Access . | . . . . . . . . . . . . . Total Hacks 17 | . 4 1 1 . . . . 1 . 4 . 6 Successful 6 | . 1 1 1 . . . . 1 . . . 2 Failed 11 | . 3 . . . . . . . . 4 . 4 Catastrophic 4 | . . . . . . . . . . 2 . 2 Database Lockouts . | . . . . . . . . . . . . . Manual 3 | . . . . . . . . . . 2 . 1 Terminals 13 | . 4 . . . . . . 1 . 4 . 4 Fabricators . | . . . . . . . . . . . . . Repair Stations . | . . . . . . . . . . . . . Recycling Units 2 | . . . . . . . . . . . . 2 Scanalyzers . | . . . . . . . . . . . . . Garrison Access . | . . . . . . . . . . . . . Terminal Hacks 5 | . 1 1 1 . . . . 1 . . . 1 Record 1 | . . . 1 . . . . . . . . . Open Door 1 | . . 1 . . . . . . . . . . Open DSF 1 | . . . . . . . . 1 . . . . Locate Traps 1 | . . . . . . . . . . . . 1 Zone Layout 1 | . 1 . . . . . . . . . . . Fabricator Hacks . | . . . . . . . . . . . . . Repair Station Hacks . | . . . . . . . . . . . . . Recycling Unit Hacks 1 | . . . . . . . . . . . . 1 Report Inventory 1 | . . . . . . . . . . . . 1 Scanalyzer . | . . . . . . . . . . . . . Garrison Access Hacks . | . . . . . . . . . . . . . Unauthorized Hacks . | . . . . . . . . . . . . . Terminals . | . . . . . . . . . . . . . Fabricators . | . . . . . . . . . . . . . Repair Stations . | . . . . . . . . . . . . . Recycling Units . | . . . . . . . . . . . . . Scanalyzers . | . . . . . . . . . . . . . Garrison Access . | . . . . . . . . . . . . . Data Cores Recovered . | . . . . . . . . . . . . . Used . | . . . . . . . . . . . . . Hacking Detections 7 | . 1 . . . . . . 1 . 2 . 3 Full Trace Events 4 | . 1 . . . . . . . . 2 . 1 Feedback Events . | . . . . . . . . . . . . . Feedback Blocked . | . . . . . . . . . . . . . Robot Schematics Acquired . | . . . . . . . . . . . . . Robots Built . | . . . . . . . . . . . . . Authchips . | . . . . . . . . . . . . . Time . | . . . . . . . . . . . . . Total Robot Build Rating . | . . . . . . . . . . . . . Part Schematics Acquired . | . . . . . . . . . . . . . Parts Built . | . . . . . . . . . . . . . Authchips . | . . . . . . . . . . . . . Time . | . . . . . . . . . . . . . Total Part Build Rating . | . . . . . . . . . . . . . Parts Repaired . | . . . . . . . . . . . . . Time . | . . . . . . . . . . . . . Parts Recycled . | . . . . . . . . . . . . . Recycled Matter . | . . . . . . . . . . . . . Retrieved Matter . | . . . . . . . . . . . . . Retrieved Components . | . . . . . . . . . . . . . Parts Scanalyzed . | . . . . . . . . . . . . . Part Schematics Acquired . | . . . . . . . . . . . . . Parts Damaged . | . . . . . . . . . . . . . Bothacking | -11 -10 -10 -10 -9 -8 -7 -7 -7 -7 -6 -6 -6 ------------ Run | Yrd Mat Min Exi Min Mat Fac Was Fac DSF Fac Was Fac Used RIF Installer . | . . . . . . . . . . . . . Robots Hacked . | . . . . . . . . . . . . . Non-combat . | . . . . . . . . . . . . . Combat . | . . . . . . . . . . . . . Robot Hacks Applied . | . . . . . . . . . . . . . Relay Couplers Released . | . . . . . . . . . . . . . Fabnet Peak Effective % . | . . . . . . . . . . . . . Robots Rewired . | . . . . . . . . . . . . . Allies Hacked . | . . . . . . . . . . . . . Hacks Repelled . | . . . . . . . . . . . . . Allies | -11 -10 -10 -10 -9 -8 -7 -7 -7 -7 -6 -6 -6 -------- Run | Yrd Mat Min Exi Min Mat Fac Was Fac DSF Fac Was Fac Total Allies 3 | . . 2 . . . . 1 . . . . . Largest Group 2 | . . 2 . . . . 1 . . . . . Highest-Rated Group 42 | . . 42 . . . . 31 . . . . . Highest-Rated Ally 31 | . . 31 . . . . 31 . . . . . Total Orders 1 | . . . . . . . . . . . . 1 EXPLORE 1 | . . . . . . . . . . . . 1 Ally Attacks 22 | . . 22 . . . . . . . . . . Total Damage 245 | . . 245 . . . . . . . . . . Kills 5 | . . 5 . . . . . . . . . . Allies Corrupted . | . . . . . . . . . . . . . Allies Melted . | . . . . . . . . . . . . . Intel | -11 -10 -10 -10 -9 -8 -7 -7 -7 -7 -6 -6 -6 ------- Run | Yrd Mat Min Exi Min Mat Fac Was Fac DSF Fac Was Fac Active Infowar (turns) 584 | . . 227 100 62 54 40 31 12 58 . . . Terrain 584 | . . 227 100 62 54 40 31 12 58 . . . Robot Analysis Total . | . . . . . . . . . . . . . Derelict Logs Recovered 2 | . . 1 . 1 . . . . . . . . Drone Launches 2 | . . . . . . . . . . . . 2 Drone Recoveries . | . . . . . . . . . . . . . Exploration | -11 -10 -10 -10 -9 -8 -7 -7 -7 -7 -6 -6 -6 ------------- Run | Yrd Mat Min Exi Min Mat Fac Was Fac DSF Fac Was Fac Turns Passed 1230 | 17 111 368 100 62 54 40 31 12 78 40 87 230 Spaces Moved 2756 | 30 210 690 270 167 146 116 81 36 146 105 214 545 Core 635 | 30 210 166 . . . . . . . 29 . 200 Treads . | . . . . . . . . . . . . . Legs . | . . . . . . . . . . . . . Wheels . | . . . . . . . . . . . . . Hover . | . . . . . . . . . . . . . Flight 2121 | . . 524 270 167 146 116 81 36 146 76 214 345 Fastest Speed 22 | 50 50 37 37 37 34 34 34 34 22 32 35 34 Average Speed 38 | 50 50 40 37 37 34 34 35 34 35 37 35 39 Slowest Speed 120 | 50 50 50 37 37 34 34 37 34 120 50 35 50 Overloaded Moves . | . . . . . . . . . . . . . Propulsion Burnouts . | . . . . . . . . . . . . . Robots Hopped 3 | . . 1 . . . 1 . . . . . 1 Potential Cave-ins . | . . . . . . . . . . . . . Cave-ins Triggered . | . . . . . . . . . . . . . Exploration Rate (%) 42 | 3 30 97 69 51 20 5 84 2 93 6 75 21 Regions Visited 12 Branch Regions 3 Pre-discovered Areas 1 | . . 1 . . . . . . . . . . Known Exits Taken 2 | . . . . . 1 . . 1 . . . . Unknown Exits Taken 5 | 1 1 1 1 1 . . . . . . . . Scrap Searched 2 | . . 1 . 1 . . . . . . . . Spaces Dug . | . . . . . . . . . . . . . Terrain Destroyed . | . . . . . . . . . . . . . Melee . | . . . . . . . . . . . . . Projectile . | . . . . . . . . . . . . . AOE . | . . . . . . . . . . . . . Terrain Rammed . | . . . . . . . . . . . . . Walls Destroyed . | . . . . . . . . . . . . . Machines Disabled . | . . . . . . . . . . . . . Actions | -11 -10 -10 -10 -9 -8 -7 -7 -7 -7 -6 -6 -6 --------- Run | Yrd Mat Min Exi Min Mat Fac Was Fac DSF Fac Was Fac Total 2897 | 31 215 778 269 166 149 115 82 35 169 106 225 557 Wait 94 | . 3 79 . . . . . . . . 10 2 Move 2740 | 29 209 687 269 166 145 114 80 35 145 105 213 543 Hop 3 | . . 1 . . . 1 . . . . . 1 Pick Up 17 | 2 2 4 . . 2 . 1 . 3 . 1 2 Fast Attach 10 | . . 2 . . . . . . 5 1 . 2 Attach 9 | . . 3 . . 2 . 1 . . . 1 2 Detach 2 | . . . . . . . . . . . . 2 Swap 1 | . . . . . . . . . 1 . . . Drop 4 | . . 1 . . . . . . 1 . . 2 Fire . | . . . . . . . . . . . . . Melee . | . . . . . . . . . . . . . Ram 2 | . 1 . . . . . . . . . . 1 Kick . | . . . . . . . . . . . . . Crush . | . . . . . . . . . . . . . Escape Stasis 14 | . . . . . . . . . 14 . . . Rewire . | . . . . . . . . . . . . . Trap 1 | . . 1 . . . . . . . . . . Miscellaneous . | . . . . . . . . . . . . . Route ------- -11/Scrapyard -10/Materials -10/Mines (discovered 3 exits: [*Mat x2] / *Exi) -10/Exiles -9/Mines -8/Materials (discovered 3 exits: *Fac x3) -7/Factory -7/Waste -7/Factory -7/DSF -6/Factory -6/Waste -6/Factory History --------- Turn | Location | Event 8 | -11/Scrapyard | Discovered new exit (range 15) 18 | -11/Scrapyard | Entered Materials 71 | -10/Materials | Discovered new exit (range 14) 129 | -10/Materials | Entered Mines 132 | -10/Mines | Discovered new exit (range 5) 167 | -10/Mines | Discovered new exit (range 3) 176 | -10/Mines | Learned location of 2 exits from Materials 268 | -10/Mines | Found the Drone Emporium 271 | -10/Mines | Found Prototype Device 310 | -10/Mines | Build established: Mutant 328 | -10/Mines | Learned location of Storage (-7) 349 | -10/Mines | Found a hidden stash of uninstalled traps 430 | -10/Mines | Deemed a non-threat by the Exiles lab entrance 430 | -10/Mines | Discovered new exit (range 5) 497 | -10/Mines | Entered Exiles 497 | -10/Exiles | Found Exiles lab abandoned 593 | -10/Exiles | Discovered new exit (range 12) 597 | -10/Exiles | Entered Mines 598 | -9/Mines | Assembled infested the area 599 | -9/Mines | Learned Materials garrison access intel 655 | -9/Mines | Discovered new exit (range 12) 659 | -9/Mines | Entered Materials 659 | -8/Materials | Evolved 4 slots: Propulsion x2, Utility x2 660 | -8/Materials | Identified exit to Factory 661 | -8/Materials | Loaded intel: 1 garrison access location 711 | -8/Materials | Discovered exit to Factory (range 7) 713 | -8/Materials | Entered Factory 713 | -7/Factory | Evolved 2 slots: Propulsion x2 753 | -7/Factory | Manually triggered Chute Trap 753 | -7/Factory | Sucked down chute 753 | -7/Factory | Entered Waste 754 | -7/Waste | Met a frightened Derelict 766 | -7/Waste | Spotted C-40 Crusher 768 | -7/Waste | EMP discharged 768 | -7/Waste | Spotted C-40 Crusher 768 | -7/Waste | Spotted C-40 Crusher 769 | -7/Waste | Crushed by Compactor (1 part destroyed, 2 dropped) 773 | -7/Waste | Spotted C-40 Crusher 775 | -7/Waste | Spotted C-40 Crusher 776 | -7/Waste | Spotted C-40 Crusher 777 | -7/Waste | Discovered new exit (range 12) 784 | -7/Waste | Entered Factory 796 | -7/Factory | Identified exit to DSF 796 | -7/Factory | Entered DSF 817 | -7/DSF | Additional patrols routed to DSF 839 | -7/DSF | Discovered new exit (range 16) 874 | -7/DSF | Entered Factory 874 | -6/Factory | Evolved 2 slots: Power x1, Utility x1 914 | -6/Factory | Sucked down chute 914 | -6/Factory | Entered Waste 921 | -6/Waste | Spotted C-40 Crusher 921 | -6/Waste | Spotted C-40 Crusher 921 | -6/Waste | Spotted C-40 Crusher 929 | -6/Waste | EMP discharged 930 | -6/Waste | Lost 9 parts (7n2u) 942 | -6/Waste | Spotted C-40 Crusher 958 | -6/Waste | Spotted C-40 Crusher 977 | -6/Waste | Spotted C-40 Crusher 988 | -6/Waste | Discovered new exit (range 16) 1001 | -6/Waste | Entered Factory 1002 | -6/Factory | System corruption reached 10% 1053 | -6/Factory | Identified Decoy Drone Bay 1112 | -6/Factory | Core integrity fell below 50% 1141 | -6/Factory | Core integrity fell below 20% 1159 | -6/Factory | Lost 3 parts (2n1u) 1231 | -6/Factory | Destroyed by P-60 Hacker with Shock Rifle Last Messages --------------- 01170_ Triggered Shock Trap. 01170_ The floor emits a surge of raw power. 01170_ System corrupted (+2). 01180_ System corrupted: Heat flow error (+123). 01180_ U-05 Engineer destroyed. 01190_ O-24 Administrator: "IFF HANDSHAKE FAILED. SECURING TERMINAL." 01192_ O-24 Administrator uses terminal to summon reinforcements. 01192_ ALERT: Hostiles spotted, dispatching reinforcements to Terminal F004. 01192_ O-24 Administrator locks terminal. 01194_ K-01 Serf cleans the Neutrino Reactor. 01201_ Dropped Proton Missile Launcher. 01202_ Acquired Imp. Grenade Launcher. 01202_ K-01 Serf cleans the Neutrino Reactor. 01223_ System corrupted: Matter fused (-6). 01225_ K-01 Serf cleans the Neutrino Reactor. Map ----- +----------------------------------------------------+ | ?????????????????# ! ""S #?# """"""" + #? | | ?????????????????# "" #?# """"""" # #? | | ?????????????????# #?# # #? | | ???????#######???# #?#! = !# ## | | ???????# #???# """"""""" #?# # | | ???????# ##### #?########+## | | ???????# + """"""""" #????????# | | ???????# ##### #????????# | | ???????# #???# """"""""" #????????# == | | ???????# #???# #????????# == | | ???????# ###########+############### = | | ???????# ] "" "" | | ???????# ""T"" | | ???????# """ """ """ """p """ | | ???????# """ """ """ """ | | ???????# """ """ """ """ | | ???????# ^ ##########+############ | | ???????# """ """ """ """ #?????????????????????? | | ??????? """ """ """ """ #?????????????????????? | | ?????? """ """ """ """ #?????????????????????? | | ?????? ?? !#?????????????????????? | | ??????[ ????" """ """ """ #?????????????????????? | | ????? ????" "?" """ """ #?????????????????????? | | ????????????? """ """ """ #?????????????????????? | | ????????? #?????????????????????? | | ????????? """ """@ #?????????????????????? | | ?????????????"?? """ """ #?????????????????????? | | ??????????????????""" """ u#?????????????????????? | | ?????????????????? #?????????????????????? | | ?????????????????? #?????????????????????? | | ?????????????????##### #?????????????????????? | | ?????????????????????# #?????????????????????? | | ?????????????????????# #?????????????????????? | | ?????????????????????# #?????????????????????? | | ?????????????????????# +?????????????????????? | | ?????????????????????# #?????????????????????? | | ?????????????????????# +?????????????????????? | | ?????????????????????# #?????????????????????? | | ?????????????????????? ??????????????????????? | | ?????????????????????? ??????????????????????? | | ??????????????????????? ??????????????????????? | | ?????????????????????????????????????????????????? | | ?????????????????????????????????????????????????? | | ?????????????????????????????????????????????????? | | ?????????????????????????????????????????????????? | | ?????????????????????????????????????????????????? | | ?????????????????????????????????????????????????? | | ?????????????????????????????????????????????????? | | ?????????????????????????????????????????????????? | | ?????????????????????????????????????????????????? | +----------------------------------------------------+ Best States ------------- Heat Dissipation 37 Energy Generation 10 Energy Capacity 125 Matter Stores 300 Matter Capacity 300 Sight Range 16 Terrain Scan Range 14 Terrain Scan Density 10 Armor Coverage 150 Evasion (%) 65 Item Schematics ----------------- None Robot Schematics ------------------ None Fabricated ------------ Nothing Repaired ---------- Nothing Alien Tech Used ----------------- None Achievements -------------- None Challenges ------------ None Game ------ Seed ThermalCobblerGuard Manual? 0 Play Time 00:18:00 Cumulative 102.9 hours Start 2025.08.05 @ 13:42:38 End 2025.08.05 @ 14:00:28 Sessions 1 Manual Loads 0 Difficulty Rogue Special Mode None Game No. 184 Rogue 184 Adventurer 0 Explorer 0 Win Type - Total 1 Types 1/0/0/0/0/0/0/0/0/0 Lore% 65 Gallery% 60 Achievement% 43 Wizard Run 0 Options --------- Layout 1 ASCII 0 Keyboard 0 Movement Mouse Keybinds 0 Fullscreen 1 Font 24/Smallcaps Map View 50x35 Zoom Use 0% Tactical HUD 1 Map Filters NONE Filters NONE Steam 1 RUN: 8e7a1162-5c54-4bb3-9aa7-b7ee72a62976